bitfinex/quotes_ETHUSD_20260121
["timestamp","ask_amount","ask_price","bid_price","bid_amount"]
[1768984144201,4.90474317,2969.4,2968.8,0.002]
[1768984144202,11.7245589,2969.1,2968.8,0.002]
[1768984144405,11.7245589,2969.1,2968.7,0.557]
[1768984145902,11.7245589,2969.1,2968.7,1.021916]
[1768984146907,11.7245589,2969.1,2968.5,1.71281884]
[1768984147116,11.7245589,2969.1,2968.6,0.17148188]
[1768984148623,11.7245589,2969.1,2968.6,0.72648188]
[1768984151210,11.7245589,2969.1,2968.6,1.28148188]
[1768984151797,11.7245589,2969.1,2968.6,2.99430072]
[1768984153209,11.7245589,2969.1,2968.6,1.11]
[1768984153409,11.7255589,2968.9,2968.6,0.878825]
[1768984153596,11.7255589,2968.9,2968.6,1.433825]
[1768984154230,11.7255589,2968.9,2968.7,1.74650361]
[1768984154231,0.001,2968.9,2968.7,1.74650361]
[1768984154530,0.001,2968.9,2968.6,0.02968561]
[1768984154909,0.001,2968.9,2968.7,0.01687398]
[1768984155425,0.001,2968.9,2968.6,0.02968561]
[1768984156125,0.001,2968.9,2968.6,0.58468561]
[1768984158629,0.001,2968.9,2968.6,1.13968561]
[1768984159812,0.001,2968.9,2968.7,0.01687398]
[1768984160734,0.001,2968.9,2968.6,1.13968561]
[1768984161635,0.001,2968.9,2968.6,1.69468561]
[1768984164133,0.001,2968.9,2968.6,2.24968561]
[1768984164735,0.001,2968.7,2968.6,2.24968561]
[1768984166840,0.001,2968.7,2968.6,2.80468561]
[1768984169539,0.001,2968.7,2968.6,3.35968561]
[1768984171504,11.69137027,2969.0,2968.6,3.4331608]
[1768984171735,2.958375,2969.2,2968.7,0.09034803]
[1768984171935,11.76484546,2969.2,2968.7,0.06675656]
[1768984172238,11.76484546,2969.3,2968.8,0.46490078]
[1768984172442,11.76484546,2969.3,2968.8,0.43505659]
[1768984174516,11.76484546,2969.3,2968.8,0.99005659]
[1768984174918,11.76484546,2969.3,2968.8,0.555]
[1768984176226,11.76484546,2969.3,2968.8,0.5205436]
[1768984176429,11.76484546,2969.0,2968.8,0.49297812]
[1768984177144,11.76484546,2969.0,2968.8,1.04797812]
[1768984177651,11.76484546,2969.0,2968.8,1e-08]
[1768984179643,11.76484546,2969.0,2968.8,0.55500001]
[1768984179845,11.76484546,2969.0,2968.8,0.54810856]
[1768984180018,11.76484546,2969.0,2968.8,0.48608611]
[1768984180223,11.76484546,2969.0,2968.6,3.91467132]
[1768984182028,11.76484546,2969.0,2968.6,1.09583778]
[1768984182228,12.94143001,2969.0,2968.6,1.09583778]
[1768984182746,11.76484546,2969.0,2968.6,1.09583778]
[1768984183162,11.76484546,2969.0,2968.6,1e-08]
[1768984184657,11.76484546,2969.0,2968.6,0.55500001]
[1768984187371,11.76484546,2969.0,2968.6,1e-08]
[1768984187550,11.76484546,2969.0,2968.4,0.002]
[1768984188267,11.76484546,2969.0,2968.4,0.06875656]
[1768984188668,11.76484546,2969.0,2968.8,0.002]
[1768984188866,12.94143001,2969.0,2968.4,0.06875656]
[1768984189073,11.76484546,2969.0,2968.5,0.002]
[1768984189775,11.76484546,2969.0,2968.5,0.557]
[1768984192492,11.76484546,2969.0,2968.5,1.112]
[1768984194582,0.001,2969.1,2968.6,0.06675656]
[1768984194796,0.001,2969.1,2968.6,0.555]
[1768984194997,12.04930473,2969.1,2968.7,0.06675656]
[1768984196250,12.04770473,2969.1,2968.7,0.06675656]
[1768984196449,12.04770473,2969.1,2968.6,0.62235656]
[1768984197380,12.04770473,2969.1,2968.6,1.17735656]
[1768984198350,12.04770473,2969.1,2968.6,1.11]
[1768984199812,12.04770473,2969.1,2968.6,1.665]
[1768984200662,12.04770473,2969.1,2968.7,0.002]
[1768984201104,12.04930473,2968.9,2968.7,0.002]
[1768984202306,12.66738786,2969.2,2968.8,0.06735656]
[1768984202674,2.782407,2969.3,2968.8,0.06735656]
[1768984203027,0.0008,2969.7,2969.0,0.06635656]
[1768984203311,12.66838786,2970.1,2969.7,0.06715656]
[1768984203312,0.001,2970.1,2969.7,0.06715656]
[1768984205109,0.001,2970.1,2969.7,0.62215656]
[1768984205268,0.001,2970.1,2969.8,0.06635656]
[1768984206513,0.001,2970.1,2969.7,0.47932481]
[1768984206514,12.66738786,2969.9,2969.7,0.47932481]
[1768984207287,13.93430665,2969.9,2969.7,0.47932481]
[1768984207471,13.93430665,2969.9,2969.0,0.06635656]
[1768984207664,12.66738786,2969.9,2969.0,3.3681239]
[1768984207973,12.66738786,2969.9,2969.1,0.06635656]
[1768984209497,12.66738786,2969.9,2968.8,0.06635656]
[1768984209675,12.66738786,2969.7,2968.8,0.06635656]
[1768984209878,12.66738786,2969.7,2968.9,0.06635656]
[1768984210590,12.66738786,2969.7,2969.0,0.06635656]
[1768984211697,12.66738786,2969.9,2969.1,0.06635656]
[1768984211899,0.0008,2970.0,2969.1,0.06635656]
[1768984212102,12.66818786,2970.0,2969.1,0.06635656]
[1768984212297,12.66818786,2970.0,2969.2,0.06635656]
[1768984212498,12.66738786,2969.8,2969.2,0.06635656]
[1768984212689,12.66738786,2969.8,2969.3,0.002]
[1768984212896,1.26691879,2969.9,2969.3,0.06835656]
[1768984213093,1.26791879,2969.9,2969.3,0.06835656]
[1768984213296,0.001,2969.9,2969.3,0.06835656]
[1768984213807,12.66838786,2969.9,2969.3,0.06835656]
[1768984214776,12.66838786,2969.9,2969.3,0.62335656]
[1768984215976,12.66838786,2969.9,2969.4,0.06635656]
[1768984217218,12.66838786,2969.9,2969.4,0.62135656]
[1768984217711,12.66838786,2969.9,2969.4,0.555]
[1768984217911,13.93540665,2969.9,2969.4,0.555]
[1768984218415,13.93540665,2969.9,2969.4,0.62135656]
[1768984218717,13.93540665,2969.9,2969.4,0.555]
[1768984220003,13.93540665,2969.9,2969.4,1.11]
[1768984220819,13.93540665,2969.9,2969.4,1e-08]
[1768984221018,11.8541817,2969.7,2969.4,1e-08]
[1768984222413,11.8541817,2969.7,2969.4,0.55500001]
[1768984222621,11.8541817,2969.7,2969.4,0.19736625]
[1768984222786,11.8541817,2969.7,2969.3,0.557]
[1768984224793,11.8541817,2969.7,2969.3,1.112]
[1768984225527,13.22813039,2969.7,2969.3,1e-08]
[1768984225688,13.22913039,2969.7,2969.3,1e-08]
[1768984226488,11.8551817,2969.7,2969.3,1e-08]
[1768984227194,11.8551817,2969.7,2969.3,0.55500001]
[1768984229600,11.8551817,2969.7,2969.3,1.11000001]
[1768984230214,11.8551817,2969.7,2969.3,1e-08]
[1768984233597,0.04209321,2969.6,2969.3,1e-08]
[1768984233804,11.8541817,2969.5,2969.3,1e-08]
[1768984234011,13.03969987,2969.5,2969.1,0.555]
[1768984234203,11.8541817,2969.5,2969.1,0.555]
[1768984234524,11.8541817,2969.5,2969.1,1.11]
[1768984234927,11.8541817,2969.5,2969.1,1e-08]
[1768984236931,11.8541817,2969.5,2969.0,1e-08]
[1768984237321,11.8541817,2969.5,2969.3,0.002]
[1768984237528,11.8541817,2969.3,2968.8,0.555]
[1768984238660,11.8541817,2969.1,2968.7,1e-08]
[1768984239326,11.8541817,2969.1,2968.7,0.55500001]
[1768984239528,11.8541817,2969.0,2968.6,1e-08]
[1768984241145,11.8541817,2969.2,2968.6,0.06635657]
[1768984241466,13.03959987,2969.1,2968.6,1e-08]
[1768984241666,13.03959987,2969.1,2968.6,0.55500001]
[1768984244170,13.03959987,2969.1,2968.6,1.11000001]
[1768984246466,14.483377,2969.2,2968.7,0.06635656]
[1768984246766,12.25291161,2969.2,2968.7,0.06635656]
[1768984247666,0.001,2969.7,2968.9,0.06635656]
[1768984248377,12.25391161,2969.7,2968.9,0.06635656]
[1768984249139,12.25391161,2969.7,2969.0,0.06635656]
[1768984249375,12.25391161,2969.7,2969.1,0.06635656]
[1768984249781,0.001,2969.3,2969.1,0.06635656]
[1768984251680,0.001,2969.3,2969.2,0.06635656]
[1768984254184,0.001,2969.9,2969.4,0.06635656]
[1768984256263,12.25391161,2969.9,2969.4,0.06635656]
[1768984256465,12.25391161,2969.9,2969.4,0.62135656]
[1768984256663,12.25391161,2969.9,2969.4,0.555]
[1768984259104,12.25391161,2969.9,2969.4,1.11]
[1768984261080,0.001,2969.7,2969.4,1.11]
[1768984261279,12.25391161,2969.7,2969.4,1.11]
[1768984261467,12.25391161,2969.7,2969.4,1.665]
[1768984263882,0.001,2969.7,2969.4,2.28635656]
[1768984266301,0.001,2969.7,2969.5,0.06635656]
[1768984267477,0.001,2969.7,2969.4,3.12549222]
[1768984268912,0.001,2969.7,2969.4,3.68049222]
[1768984270114,0.001,2969.7,2968.9,0.555]
[1768984270115,12.67425209,2969.6,2968.9,0.555]
[1768984270411,4.90784503,2969.7,2968.9,1e-08]
[1768984270412,14.38425209,2969.1,2968.9,1e-08]
[1768984270613,14.38425209,2969.1,2968.5,1.112]
[1768984270775,12.67425209,2968.9,2968.5,1.112]
[1768984270980,12.67425209,2968.8,2968.5,1.112]
[1768984271294,12.67425209,2968.8,2968.6,1.37347131]
[1768984271616,12.67425209,2968.8,2968.6,1.08194365]
[1768984271908,12.67425209,2968.8,2968.6,0.51495398]
[1768984272121,12.7427192,2968.6,2968.5,1.112]
[1768984272897,12.67425209,2969.0,2968.6,0.06635656]
[1768984273397,12.67425209,2969.0,2968.7,0.002]
[1768984273887,12.67425209,2969.0,2968.7,0.557]
[1768984275213,14.38425209,2969.1,2968.7,0.557]
[1768984276122,12.67425209,2969.1,2968.7,0.557]
[1768984276292,12.67425209,2969.1,2968.7,1.112]
[1768984277023,13.9416773,2969.1,2968.7,1e-08]
[1768984278923,11.77034606,2968.9,2968.4,0.002]
[1768984279721,11.77034606,2968.9,2968.3,0.002]
[1768984280832,11.77034606,2968.7,2968.1,0.557]
[1768984281298,11.77034606,2968.7,2968.1,1.112]
[1768984283013,11.77034606,2968.7,2968.0,1.73335656]
[1768984283840,11.77034606,2968.7,2968.0,2.28835656]
[1768984284129,13.43839032,2968.7,2968.0,2.28835656]
[1768984284334,13.43839032,2968.7,2968.0,1.667]
[1768984284512,13.43839032,2968.7,2968.0,2.28835656]
[1768984285206,13.43839032,2968.7,2968.2,0.002]
[1768984285402,13.43839032,2968.7,2968.0,2.28835656]
[1768984286431,13.43839032,2968.7,2968.0,2.84335656]
[1768984287147,13.43839032,2968.7,2968.0,0.555]
[1768984287355,11.77034606,2968.5,2968.0,0.555]
[1768984287852,11.77034606,2968.5,2968.0,1.02570856]
[1768984288260,11.77034606,2968.5,2968.0,0.555]
[1768984288627,11.77034606,2968.5,2968.0,1.02570856]
[1768984288823,11.77034606,2968.5,2968.0,1.58070856]
[1768984289352,11.77034606,2968.5,2968.0,1.11]
[1768984291225,11.77034606,2968.5,2968.0,1.665]
[1768984292456,0.06848098,2968.0,2967.7,0.555]
[1768984292624,11.83882704,2968.0,2967.7,0.555]
[1768984293255,0.06848098,2968.0,2967.7,1.02570856]
[1768984293450,11.77034606,2968.7,2968.0,0.47070856]
[1768984295045,11.77034606,2969.0,2968.3,0.47070856]
[1768984295354,0.051,2969.7,2968.6,0.47070856]
[1768984295355,11.77034606,2969.6,2968.6,0.47070856]
[1768984295555,11.77034606,2969.4,2968.6,0.47070856]
[1768984295755,12.94738067,2969.4,2968.6,0.47070856]
[1768984295932,12.94738067,2969.4,2968.6,0.555]
[1768984296127,12.94738067,2969.4,2968.7,0.47070856]
[1768984296328,11.77034606,2969.4,2968.7,0.47070856]
[1768984298380,11.77034606,2969.4,2968.8,0.47070856]
[1768984299043,11.77034606,2969.6,2968.8,0.47070856]
[1768984300162,11.77034606,2969.6,2968.7,0.555]
[1768984300767,11.77034606,2969.6,2968.7,1.11]
[1768984300967,11.77034606,2969.4,2968.7,1.11]
[1768984301165,11.77034606,2969.2,2968.7,1.04151902]
[1768984301373,11.77034606,2969.0,2968.7,1e-08]
[1768984301865,11.77034606,2969.4,2968.7,0.47070857]
[1768984302372,11.77034606,2969.5,2968.7,0.47070857]
[1768984302675,11.77034606,2969.5,2968.8,0.47070856]
[1768984303251,11.77034606,2969.5,2968.9,0.47070856]
[1768984304599,0.001,2969.7,2968.9,0.47070856]
[1768984304600,11.77134606,2969.7,2968.9,0.47070856]
[1768984304895,11.77134606,2969.7,2969.0,0.47070856]
[1768984305100,11.77134606,2969.7,2969.2,0.47070856]
[1768984305301,0.001,2969.7,2969.2,0.47070856]
[1768984305465,0.001,2969.9,2969.3,0.47070856]
[1768984306850,12.64232617,2969.9,2969.3,0.47070856]
[1768984307252,0.001,2969.9,2969.3,0.47070856]
[1768984307482,0.001,2969.9,2969.4,0.47070856]
[1768984308063,0.001,2969.9,2969.5,0.47070856]
[1768984308463,0.001,2969.9,2969.4,0.555]
[1768984308464,12.64232617,2969.9,2969.4,0.555]
[1768984308865,0.001,2969.7,2969.4,0.555]
[1768984309068,12.64232617,2969.7,2969.4,0.555]
[1768984309555,0.001,2969.7,2969.4,0.555]
[1768984310082,12.64232617,2969.7,2969.4,0.555]
[1768984310458,12.64232617,2969.7,2969.4,1.11]
[1768984311289,12.64132617,2969.6,2969.1,0.555]
[1768984312199,13.90665879,2969.7,2969.2,1.58070856]
[1768984312382,12.64232617,2969.7,2969.2,1.58070856]
[1768984312575,0.001,2969.7,2969.2,1.58070856]
[1768984312966,0.001,2969.7,2969.3,1.58070856]
[1768984313193,12.64232617,2969.7,2969.2,0.555]
[1768984313497,12.64232617,2969.7,2969.2,2.13570856]
[1768984313800,12.64232617,2969.7,2969.3,1.58070856]
[1768984314381,13.90665879,2969.7,2969.2,0.555]
[1768984315408,13.90665879,2969.7,2969.2,1.11]
[1768984316386,12.64232617,2969.7,2969.2,1.11]
[1768984317264,12.64232617,2969.7,2969.2,2.69070856]
[1768984317766,12.64232617,2969.7,2969.2,3.24570856]
[1768984317970,12.64232617,2969.7,2969.2,1.665]
[1768984318970,12.64232617,2969.7,2969.2,3.24570856]
[1768984320171,12.64232617,2969.7,2969.4,0.002]
[1768984320367,0.001,2969.5,2969.4,0.002]
[1768984320569,0.001,2969.9,2969.4,1.58270856]
[1768984320773,0.001,2969.9,2969.4,1.96297942]
[1768984321200,0.001,2969.9,2969.4,3.74992935]
[1768984321405,0.001,2969.9,2969.5,1.58070856]
[1768984321709,12.14748842,2970.4,2969.5,1.58070856]
[1768984321999,12.14748842,2970.5,2969.7,1.58070856]
[1768984322503,12.14748842,2970.5,2969.8,1.58070856]
[1768984324404,12.14748842,2970.4,2969.8,1.58070856]
[1768984325222,12.14748842,2970.4,2969.9,1.58070856]
[1768984327680,12.14748842,2970.4,2970.0,1.58070856]
[1768984328080,0.001,2970.8,2969.9,0.555]
[1768984328081,12.14828842,2970.3,2969.9,0.555]
[1768984328809,0.0008,2970.3,2970.0,1.58070856]
[1768984330302,0.0008,2970.3,2970.0,2.13570856]
[1768984330934,0.0008,2970.3,2970.1,1.58070856]
[1768984331083,12.14848842,2970.8,2970.0,0.555]
[1768984331295,12.14848842,2970.8,2970.1,1.57990856]
[1768984331598,12.14748842,2970.7,2970.1,1.57990856]
[1768984332537,12.14928842,2970.6,2970.1,1.57990856]
[1768984332748,12.14928842,2970.6,2970.1,2.13490856]
[1768984332947,12.14928842,2970.6,2970.1,0.555]
[1768984333243,12.14928842,2970.6,2970.1,2.13490856]
[1768984335218,12.14928842,2970.6,2970.1,2.68990856]
[1768984337229,12.14928842,2970.6,2970.1,1.11]
[1768984337749,12.14928842,2970.6,2970.1,3.24490856]
[1768984338346,0.0018,2970.6,2970.2,1.57990856]
[1768984340430,0.0018,2970.6,2970.3,1.57990856]
[1768984342759,0.0018,2970.6,2970.3,2.13490856]
[1768984344625,11.82449956,2971.1,2970.5,1.57990856]
[1768984344922,11.82529956,2970.9,2970.6,0.64836517]
[1768984345123,11.82529956,2970.9,2970.4,2.13490856]
[1768984347720,11.82529956,2970.9,2970.4,1.11]
[1768984347927,0.0008,2970.9,2970.5,1.57990856]
[1768984350646,0.0008,2970.9,2970.6,1.57990856]
[1768984351325,0.0008,2970.9,2970.6,1.90439942]
[1768984353028,0.0008,2970.9,2970.6,0.87949086]
[1768984353356,0.0008,2970.9,2970.7,1.57990856]
[1768984355057,11.82449956,2971.1,2970.7,1.57990856]
[1768984355543,11.82449956,2971.1,2970.7,2.13490856]
[1768984355742,11.82449956,2971.1,2970.7,2.4918485]
[1768984357045,11.82529956,2971.5,2971.0,1.57990856]
[1768984358037,11.82529956,2971.5,2971.0,2.13490856]
[1768984358435,11.82449956,2971.6,2971.1,1.57990856]
[1768984358639,11.82449956,2971.6,2971.2,0.21349086]
[1768984360963,11.82449956,2971.6,2971.2,0.76849086]
[1768984363283,11.82449956,2971.6,2971.2,1.32349086]
[1768984365810,11.82449956,2971.6,2971.2,1.87849086]
[1768984366621,11.82449956,2971.6,2971.2,3.45839942]
[1768984367223,11.82449956,2971.6,2971.2,1.87849086]
[1768984368223,11.82449956,2971.6,2971.2,2.43349086]
[1768984369010,0.001,2971.4,2971.2,2.43349086]
[1768984369209,0.001,2971.4,2971.3,0.40133994]
[1768984369392,0.001,2971.4,2971.2,2.43349086]
[1768984370526,0.001,2972.1,2971.5,1.57990856]
[1768984370701,0.001,2972.1,2971.2,9.71973437]
[1768984370702,0.0008,2972.3,2971.9,8.26738378]
[1768984371023,12.2833657,2972.3,2971.8,4.90374317]
[1768984372421,12.2833657,2972.6,2972.0,8.26738378]
[1768984372613,12.2833657,2972.6,2972.1,1.16322112]
[1768984374503,12.2833657,2972.6,2972.0,0.555]
[1768984374706,12.2825657,2972.4,2971.5,8.82438378]
[1768984375225,12.2825657,2972.4,2971.3,8.82238378]
[1768984375525,12.2825657,2972.4,2971.3,9.37738378]
[1768984376429,12.2825657,2972.2,2971.3,0.555]
[1768984376599,12.2825657,2972.0,2971.3,0.555]
[1768984377126,12.2825657,2972.0,2971.3,9.37738378]
[1768984377924,12.2825657,2972.5,2971.6,8.82238378]
[1768984378851,12.2825657,2972.5,2971.7,8.82238378]
[1768984380340,12.2825657,2972.5,2971.7,0.555]
[1768984380546,12.2825657,2972.5,2971.7,2.31963835]
[1768984381773,12.2825657,2972.5,2971.7,11.14202213]
[1768984382669,12.2825657,2972.5,2971.7,11.69702213]
[1768984383965,12.2825657,2972.5,2971.8,8.82238378]
[1768984384264,12.2825657,2972.5,2971.9,8.82238378]
[1768984384548,0.0008,2972.6,2972.1,8.82238378]
[1768984384720,12.95276545,2972.6,2972.1,8.82238378]
[1768984385352,12.95276545,2972.6,2972.1,9.37738378]
[1768984387356,12.95196545,2972.9,2972.2,8.82238378]
[1768984387524,12.95196545,2972.9,2972.4,8.82238378]
[1768984388057,12.95196545,2972.9,2972.3,1.76457513]
[1768984388253,12.95196545,2972.9,2972.3,10.58695891]
[1768984389158,12.95196545,2972.9,2972.3,10.45404285]
[1768984390853,12.95376609,2973.0,2972.4,8.82238378]
[1768984391059,12.95376609,2973.0,2972.5,1.43733854]
[1768984391439,12.95376609,2973.0,2972.5,10.25972232]
[1768984391758,12.95376609,2973.0,2972.5,1.43733854]
[1768984391939,12.95376609,2973.0,2972.5,10.25972232]
[1768984392332,12.95376609,2973.0,2972.5,1.43733854]
[1768984392622,12.95376609,2973.0,2972.3,2.18665907]
[1768984392956,12.95376609,2973.0,2972.3,11.01104285]
[1768984393163,0.001,2972.7,2972.3,11.56604285]
[1768984394955,0.001,2972.7,2972.4,8.82238378]
[1768984395563,12.3419315,2972.9,2972.3,11.01179707]
[1768984395762,12.3419315,2972.9,2972.4,9.92356349]
[1768984398060,12.3419315,2972.9,2972.4,1.10117971]
[1768984398265,12.3419315,2972.9,2972.4,0.555]
[1768984400665,12.3419315,2972.9,2972.4,1.11]
[1768984402470,0.00180064,2973.0,2972.6,8.89889863]
[1768984403134,0.00180064,2973.0,2972.6,9.45389863]
[1768984403340,12.34373214,2973.0,2972.6,9.45389863]
[1768984404662,0.001,2972.8,2972.6,9.45389863]
[1768984404851,0.001,2972.8,2972.6,10.51028849]
[1768984405871,0.001,2972.8,2972.6,2.16638986]
[1768984407588,12.3429315,2972.8,2972.6,1.02868515]
[1768984407768,12.3429315,2972.8,2972.4,1.666]
[1768984408080,12.3429315,2972.8,2972.3,1.667]
[1768984408278,12.3429315,2972.8,2972.4,0.555]
[1768984408483,13.57740471,2972.8,2972.4,0.555]
[1768984410784,13.57740471,2972.8,2972.1,1.11]
[1768984410785,12.3419315,2972.3,2972.1,1.11]
[1768984411184,12.3419315,2972.3,2971.4,12.86583936]
[1768984411487,12.3419315,2972.3,2971.7,1e-08]
[1768984412181,0.00683795,2972.4,2971.7,1e-08]
[1768984412182,12.3419315,2972.1,2971.7,1e-08]
[1768984412351,12.3419315,2971.9,2971.7,1e-08]
[1768984413180,12.3419315,2971.9,2971.7,0.55500001]
[1768984415484,12.3419315,2972.3,2971.7,0.55500001]
[1768984415688,12.3419315,2972.1,2971.7,1.11000001]
[1768984416252,12.3419315,2972.1,2971.9,0.002]
[1768984418081,12.3419315,2972.1,2971.9,0.557]
[1768984419502,12.3419315,2972.1,2971.9,1e-08]
[1768984419796,13.57612465,2972.1,2971.9,1e-08]
[1768984420490,13.57612465,2972.1,2971.7,1e-08]
[1768984420674,13.57612465,2972.1,2971.6,0.002]
[1768984420878,13.57612465,2972.1,2971.4,0.002]
[1768984421691,12.3419315,2971.8,2971.4,0.002]
[1768984421890,12.3419315,2971.6,2971.2,2.7766]
[1768984422800,12.3419315,2971.6,2971.3,1.665]
[1768984425204,12.3419315,2971.6,2971.3,2.22]
[1768984427510,12.3419315,2971.6,2971.3,2.775]
[1768984428578,12.3419315,2971.6,2971.5,0.002]
[1768984428978,12.42172985,2972.0,2971.5,0.002]
[1768984429327,12.42172985,2972.4,2971.5,12.78742277]
[1768984429532,12.42172985,2972.2,2971.5,12.78742277]
[1768984429892,12.42172985,2972.2,2971.5,13.34242277]
[1768984430312,12.42172985,2972.5,2971.5,13.34242277]
[1768984430518,12.42172985,2972.3,2971.7,12.78542277]
[1768984432109,12.42172985,2972.7,2971.7,12.78542277]
[1768984432283,12.42172985,2972.7,2971.7,13.34042277]
[1768984433012,2.680123,2972.4,2971.7,13.34042277]
[1768984433213,12.42172985,2972.4,2971.7,13.34042277]
[1768984433415,12.42172985,2972.4,2971.7,14.86358928]
[1768984434807,12.42172985,2972.4,2971.7,15.41858928]
[1768984437340,12.42172985,2972.4,2971.7,15.97358928]
[1768984437898,12.42172985,2972.4,2971.8,0.557]
[1768984438098,12.42172985,2972.4,2971.9,12.78542277]
[1768984438308,12.42172985,2972.4,2971.9,14.4384817]
[1768984439620,12.42172985,2972.4,2971.9,14.9934817]
[1768984440435,12.42172985,2972.4,2971.9,2.20805893]
[1768984440617,12.42172985,2972.4,2971.9,0.555]
[1768984440991,0.001,2972.2,2971.9,1.112]
[1768984442023,12.49160868,2972.2,2971.9,1.667]
[1768984442240,12.49060868,2972.1,2971.7,1.667]
[1768984443095,14.22945567,2972.1,2971.7,1e-08]
[1768984443312,14.22945567,2972.1,2971.5,0.557]
[1768984444395,14.22945567,2972.1,2971.5,1.112]
[1768984445321,14.22945567,2972.1,2971.5,1e-08]
[1768984446100,12.49160868,2972.2,2971.5,11.91541572]
[1768984446310,0.001,2972.2,2971.5,11.91541572]
[1768984446505,0.001,2972.2,2971.6,11.91541571]
[1768984446927,0.001,2972.2,2971.6,12.47041571]
[1768984448195,0.001,2972.2,2971.8,11.91541571]
[1768984448391,0.001,2972.2,2972.0,11.91541571]
[1768984449324,0.001,2972.2,2972.0,12.47041571]
[1768984449831,12.49060868,2972.6,2972.0,0.555]
[1768984451729,12.49060868,2972.6,2972.0,1.11]
[1768984454121,12.49060868,2972.6,2972.0,1.665]
[1768984455129,14.22945567,2972.6,2972.0,1.665]
[1768984455534,11.76901933,2972.4,2972.0,1.665]
[1768984456539,11.76901933,2972.4,2972.0,2.22]
[1768984458518,11.76901933,2972.4,2972.0,14.76211815]
[1768984458909,11.76901933,2972.4,2972.0,15.31711815]
[1768984460238,11.76901933,2972.5,2972.0,15.31711815]
[1768984460441,13.50786632,2972.6,2972.0,15.31711815]
[1768984461943,13.50786632,2972.6,2972.0,3.33]
[1768984462112,11.76901933,2972.4,2972.0,3.33]
[1768984462312,11.76901933,2972.2,2972.0,3.33]
[1768984464644,11.76901933,2972.2,2972.0,3.885]
[1768984465226,11.77001933,2972.2,2972.0,3.885]
[1768984465437,11.77001933,2972.2,2972.0,3.887]
[1768984467045,11.77001933,2972.2,2972.0,4.442]
[1768984468133,0.001,2972.2,2972.0,4.442]
[1768984469456,0.001,2972.2,2972.0,4.997]
[1768984472318,0.001,2972.2,2972.0,5.552]
[1768984472752,0.001,2972.2,2972.0,5.5536]
[1768984474839,0.001,2972.2,2972.0,6.1086]
[1768984476168,12.98907764,2972.2,2971.2,1.11160016]
[1768984476330,11.77001933,2972.2,2971.4,10.46766535]
[1768984477169,11.77001933,2972.2,2971.4,11.02266535]
[1768984477719,11.77001933,2972.2,2972.0,0.002]
[1768984478062,11.81107713,2972.1,2971.4,0.555]
[1768984478268,11.76901933,2971.9,2971.4,0.555]
[1768984480425,11.76901933,2971.9,2971.4,10.46766535]
[1768984480627,11.76901933,2972.1,2971.4,11.02266535]
[1768984481945,11.77001933,2972.2,2971.4,11.02266535]
[1768984482145,11.77001933,2972.2,2971.6,9.91266535]
[1768984482524,0.001,2972.2,2971.6,9.91266535]
[1768984482963,11.77001933,2972.2,2971.6,9.91266535]
[1768984483125,11.77001933,2972.2,2971.6,10.46766535]
[1768984485826,11.77001933,2972.2,2971.6,11.02266535]
[1768984487963,11.77001933,2972.2,2971.6,1.11]
[1768984488152,11.77001933,2972.2,2971.6,11.02266535]
[1768984488351,11.77001933,2972.2,2971.6,11.57766535]
[1768984489355,11.77001933,2972.2,2971.8,0.002]
[1768984489657,0.001,2972.0,2971.8,0.002]
[1768984490834,0.001,2972.0,2971.8,0.557]
[1768984493471,0.001,2972.0,2971.8,1.112]
[1768984495180,11.78461224,2972.0,2971.6,1.665]
[1768984495877,0.01396145,2971.8,2971.6,1.665]
[1768984496078,11.78361224,2971.7,2971.6,2.22]
[1768984497066,0.01396145,2971.8,2971.6,2.22]
[1768984498771,0.01396145,2971.8,2971.6,12.13266535]
[1768984498972,0.01396145,2971.8,2971.6,12.68766535]
[1768984499775,0.01396145,2971.8,2971.7,9.91266535]
[1768984500785,0.01396145,2971.8,2971.6,14.06763189]
[1768984500943,0.01396145,2971.8,2971.6,12.68766535]
[1768984501276,0.01396145,2971.8,2971.6,2.775]
[1768984501569,0.01396145,2971.8,2971.6,3.33]
[1768984502292,12.21762263,2971.7,2971.4,1e-08]
[1768984502583,12.21762263,2971.5,2971.4,1e-08]
[1768984503679,1.22315841,2971.6,2971.4,1e-08]
[1768984503976,12.21762263,2971.7,2971.4,0.55500001]
[1768984504480,12.21762263,2971.7,2971.4,1e-08]
[1768984505382,12.21762263,2971.7,2971.2,1.11160016]
[1768984505543,12.21762263,2971.4,2970.8,0.002]
[1768984505741,12.21762263,2971.1,2970.8,0.002]
[1768984505986,12.21762263,2971.1,2970.6,10.52666535]
[1768984506358,12.21762263,2971.1,2970.8,0.555]
[1768984506557,12.21762263,2971.1,2970.8,1e-08]
[1768984506753,13.43946489,2971.1,2970.6,0.557]
[1768984506975,13.43946489,2971.1,2970.7,0.26246853]
[1768984507179,12.21762263,2971.1,2970.7,0.26246853]
[1768984508779,12.21762263,2971.1,2970.7,0.81746853]
[1768984511390,12.21762263,2971.1,2970.7,1.37246853]
[1768984513844,12.21762263,2971.1,2970.7,1.92746853]
[1768984514178,12.21762263,2971.1,2970.7,11.89713388]
[1768984516891,12.21762263,2971.1,2970.7,12.45213388]
[1768984519880,12.21762263,2971.1,2970.7,13.00713388]
[1768984522382,12.21762263,2971.1,2970.7,13.56213388]
[1768984524374,12.21762263,2971.1,2970.7,3.59246853]
[1768984524679,0.0008,2971.2,2970.8,11.38157874]
[1768984524906,0.001,2970.9,2970.8,11.93857874]
[1768984525059,12.61760589,2971.2,2970.8,11.93857874]
[1768984525582,0.0008,2971.2,2970.8,11.93857874]
[1768984527190,0.0008,2971.2,2970.8,2.52391339]
[1768984527491,0.0008,2971.2,2970.9,10.97342427]
[1768984529689,0.0008,2971.2,2970.9,12.08542427]
[1768984532068,0.0008,2971.2,2970.9,12.64042427]
[1768984535312,0.0008,2971.2,2970.9,13.19542427]
[1768984536607,0.001,2971.0,2970.9,13.19542427]
[1768984537713,0.001,2971.0,2970.9,13.75042427]
[1768984537879,0.001,2971.0,2970.9,2.22]
[1768984538209,12.61780589,2971.0,2970.9,2.777]
[1768984538914,12.81885682,2970.9,2970.7,4.14746853]
[1768984539077,12.81885682,2970.9,2970.7,2.775]
[1768984539280,12.81885682,2970.9,2970.7,0.77598164]
[1768984539502,14.1008425,2970.9,2970.7,0.77598164]
[1768984540103,14.1008425,2970.9,2970.7,1.33098164]